fUSD/lending_fUSD_20250523
["ID","MTS","AMOUNT","RATE_DAILY","PERIOD"]
[362149388,1748039897794,420.0,0.00042541,120]
[362149389,1748039898036,420.0,0.00042541,120]
[362149390,1748039898336,420.0,0.00042541,120]
[362149391,1748039899291,420.0,0.00042541,120]
[362149392,1748039899534,342.81554547,0.00042541,120]
[362149393,1748039901487,420.0,0.00042541,120]
[362149394,1748039901771,420.0,0.00042541,120]
[362149395,1748039902022,420.0,0.00042541,120]
[362149396,1748039902295,420.0,0.00042541,120]
[362149397,1748039903840,420.0,0.00042541,120]
[362149398,1748039904081,315.9,0.00042541,120]
[362149399,1748039905951,420.0,0.00042541,120]
[362149400,1748039906192,420.0,0.00042541,120]
[362149401,1748039906252,420.0,0.00042541,120]
[362149402,1748039906424,309.43419268,0.00042541,120]
[362149403,1748039906482,420.0,0.00042541,120]
[362149404,1748039906725,420.0,0.00042541,120]
[362149405,1748039906977,420.0,0.00042541,120]
[362149406,1748039908914,420.0,0.00042541,120]
[362149407,1748039909176,420.0,0.00042541,120]
[362149408,1748039909436,420.0,0.00042541,120]
[362149409,1748039909509,420.0,0.00042541,120]
[362149410,1748039909718,420.0,0.00042541,120]
[362149411,1748039909781,420.0,0.00042541,120]
[362149412,1748039909999,420.0,0.00042541,120]
[362149413,1748039910236,420.0,0.00042541,120]
[362149415,1748039912015,150.22,0.00042541,120]
[362149416,1748039912629,324.68971018,0.00042541,120]
[362149417,1748039914283,281.0795355,0.00042541,120]
[362149418,1748039914351,420.0,0.00042541,120]
[362149419,1748039914592,420.0,0.00042541,120]
[362149420,1748039914830,475.1,0.00042541,120]
[362149421,1748039918561,420.0,0.00042541,120]
[362149422,1748039918821,420.0,0.00042541,120]
[362149423,1748039919067,420.0,0.00042541,120]
[362149424,1748039919382,366.47201009,0.00042541,120]
[362149425,1748039920349,420.0,0.00042541,120]
[362149426,1748039921394,425.95606911,0.00042541,120]
[362149427,1748039921956,420.0,0.00042541,120]
[362149428,1748039922205,420.0,0.00042541,120]
[362149429,1748039922498,420.0,0.00042541,120]
[362149430,1748039922745,420.0,0.00042541,120]
[362149431,1748039922816,420.0,0.00042541,120]
[362149432,1748039922987,420.0,0.00042541,120]
[362149433,1748039923069,471.66449883,0.00042541,120]
[362149434,1748039923226,447.72,0.00042541,120]
[362149435,1748039924022,428.79284174,0.00042541,120]
[362149436,1748039926251,420.0,0.00042541,120]
[362149437,1748039926354,531.79660377,0.00042541,120]
[362149438,1748039926504,420.0,0.00042541,120]
[362149439,1748039926753,420.0,0.00042541,120]
[362149440,1748039927009,420.0,0.00042541,120]
[362149441,1748039927059,420.0,0.00042541,120]
[362149442,1748039927274,420.0,0.00042541,120]
[362149443,1748039927516,420.0,0.00042541,120]
[362149444,1748039927763,420.0,0.00042541,120]
[362149445,1748039928014,420.0,0.00042541,120]
[362149446,1748039928255,420.0,0.00042541,120]
[362149447,1748039928316,420.0,0.00042541,120]
[362149448,1748039928480,462.24,0.00042541,120]
[362149449,1748039928563,420.0,0.00042541,120]
[362149450,1748039928813,420.0,0.00042541,120]
[362149451,1748039929053,420.0,0.00042541,120]
[362149452,1748039930680,420.0,0.00042541,120]
[362149453,1748039930799,420.0,0.00042541,120]
[362149454,1748039930933,420.0,0.00042541,120]
[362149455,1748039931058,420.0,0.00042541,120]
[362149456,1748039931177,356.83584233,0.00042541,120]
[362149457,1748039932629,420.0,0.00042541,120]
[362149458,1748039932891,420.0,0.00042541,120]
[362149459,1748039933066,420.0,0.00042541,120]
[362149460,1748039933120,559.62,0.00042541,120]
[362149461,1748039933307,420.0,0.00042541,120]
[362149462,1748039933573,420.0,0.00042541,120]
[362149463,1748039933810,420.0,0.00042541,120]
[362149464,1748039935457,429.1318345,0.00042541,120]
[362149465,1748039937060,420.0,0.00042541,120]
[362149466,1748039937311,420.0,0.00042541,120]
[362149467,1748039937567,420.0,0.00042541,120]
[362149468,1748039937815,420.0,0.00042541,120]
[362149469,1748039938063,188.46,0.00042541,120]
[362149470,1748039938897,507.18687838,0.00042541,120]
[362149471,1748039938966,428.36652815,0.00042541,120]
[362149472,1748039939820,204.09,0.00042541,120]
[362149473,1748039941687,427.75046699,0.00042541,120]
[362149474,1748039943477,420.0,0.00042541,120]
[362149475,1748039943673,420.0,0.00042541,120]
[362149476,1748039943991,420.0,0.00042541,120]
[362149477,1748039944060,420.0,0.00042541,120]
[362149478,1748039944179,447.66,0.00042541,120]
[362149479,1748039945974,229.19911485,0.00042541,120]
[362149480,1748039949642,420.0,0.00042541,120]
[362149481,1748039949870,420.0,0.00042541,120]
[362149482,1748039950296,420.0,0.00042541,120]
[362149483,1748039950569,420.0,0.00042541,120]
[362149484,1748039950818,420.0,0.00042541,120]
[362149485,1748039951073,420.0,0.00042541,120]
[362149486,1748039951878,477.35,0.00042541,120]
[362149487,1748039957664,420.0,0.00042541,120]
[362149488,1748039958029,193.79,0.00042541,120]
[362149489,1748039963119,240.00089451,0.00042541,120]
[362149490,1748039969428,515.8,0.00042541,120]
[362149491,1748039971893,420.0,0.00042541,120]
[362149492,1748039980989,420.0,0.00042541,120]
[362149493,1748039986383,420.0,0.00042541,120]
[362149494,1748039986622,420.0,0.00042541,120]
[362149495,1748039990741,420.0,0.00042541,120]
[362149496,1748039990996,420.0,0.00042541,120]
[362149497,1748039991633,420.0,0.00042541,120]
[362149498,1748039991939,420.0,0.00042541,120]
[362149499,1748039995852,420.0,0.00042541,120]
[362149500,1748039996112,420.0,0.00042541,120]
[362149501,1748039998072,420.0,0.00042541,120]
[362149502,1748039998335,420.0,0.00042541,120]
[362149503,1748040001520,420.0,0.00042541,60]
[362149504,1748040001761,420.0,0.00042541,60]
[362149505,1748040010733,420.0,0.00042578,120]
[362149506,1748040010982,417.4,0.00042578,120]
[362149507,1748040011493,420.0,0.00042578,120]
[362149508,1748040011562,290.29,0.00042578,120]
[362149509,1748040011729,231.82,0.00042578,120]
[362149510,1748040015044,420.0,0.00042578,120]
[362149511,1748040015428,420.0,0.00042578,120]
[362149512,1748040015545,420.0,0.00042578,120]
[362149513,1748040015635,420.0,0.00042578,120]
[362149514,1748040015857,420.0,0.00042578,120]
[362149515,1748040015928,420.0,0.00042578,120]
[362149516,1748040019987,420.0,0.00042578,120]
[362149517,1748040020233,420.0,0.00042578,120]
[362149518,1748040021867,420.0,0.00042578,120]
[362149519,1748040022150,420.0,0.00042578,120]
[362149520,1748040026394,420.0,0.00042578,120]
[362149521,1748040026663,420.0,0.00042578,120]
[362149522,1748040026910,420.0,0.00042578,120]
[362149523,1748040027164,420.0,0.00042578,120]
[362149524,1748040027228,420.0,0.00042578,120]
[362149525,1748040027443,420.0,0.00042578,120]
[362149526,1748040027687,420.0,0.00042578,120]
[362149527,1748040027925,420.0,0.00042578,120]
[362149528,1748040032302,420.0,0.00042578,120]
[362149529,1748040032590,420.0,0.00042578,120]
[362149530,1748040039686,420.0,0.00042578,120]
[362149531,1748040039930,420.0,0.00042578,120]
[362149532,1748040060034,420.0,0.00042578,120]
[362149533,1748040060310,420.0,0.00042578,120]
[362149534,1748040060537,420.0,0.00042578,120]
[362149535,1748040063456,420.0,0.00042578,120]
[362149536,1748040063704,220.00386862,0.00042578,120]
[362149537,1748040072377,420.0,0.00042578,120]
[362149538,1748040072518,420.0,0.00042578,120]
[362149539,1748040072632,420.0,0.00042578,120]
[362149540,1748040073112,420.0,0.00042578,120]
[362149541,1748040073367,368.6,0.00042578,120]
[362149542,1748040074051,-232.87529745,0.00016915,2]
[362149543,1748040077316,369.04,0.00042578,120]
[362149544,1748040079201,420.0,0.00042578,120]
[362149545,1748040079451,420.0,0.00042578,120]
[362149546,1748040079698,420.0,0.00042578,120]
[362149547,1748040080914,-159.04601172,0.00016915,2]
[362149548,1748040085110,420.0,0.00042578,120]
[362149549,1748040085293,101010.0,0.00042578,60]
[362149550,1748040085357,420.0,0.00042578,120]
[362149551,1748040085594,420.0,0.00042578,120]
[362149552,1748040085625,-187.61891628,0.00016915,2]
[362149553,1748040086112,420.0,0.00042578,120]
[362149554,1748040087956,-495.0710925,0.00016915,2]
[362149555,1748040090892,-420.0,0.00016915,2]
[362149556,1748040091605,420.0,0.00042578,120]
[362149557,1748040091863,420.0,0.00042578,120]
[362149558,1748040092120,420.0,0.00042578,120]
[362149559,1748040092356,379.35,0.00042578,120]
[362149560,1748040094579,420.0,0.00042578,120]
[362149561,1748040094760,-83.00868205,0.00016915,2]
[362149562,1748040094825,420.0,0.00042578,120]
[362149563,1748040095102,420.0,0.00042578,120]
[362149564,1748040095346,420.0,0.00042578,120]
[362149565,1748040096899,420.0,0.00042578,120]
[362149566,1748040097144,420.0,0.00042578,120]
[362149567,1748040098713,420.0,0.00042578,120]
[362149568,1748040098815,420.0,0.00042578,120]
[362149569,1748040099787,284.48,0.00042578,120]
[362149570,1748040101705,420.0,0.00042578,120]
[362149571,1748040102014,189.64,0.00042578,120]
[362149572,1748040103668,150.0,0.00042578,120]
[362149573,1748040106143,420.0,0.00042578,120]
[362149574,1748040106467,420.0,0.00042578,120]
[362149575,1748040107665,420.0,0.00042578,120]
[362149576,1748040107925,420.0,0.00042578,120]
[362149577,1748040112906,420.0,0.00042578,120]
[362149578,1748040113163,420.0,0.00042578,120]
[362149579,1748040113425,420.0,0.00042578,120]
[362149580,1748040113673,558.4,0.00042578,120]
[362149581,1748040116383,279.52998234,0.00042578,120]
[362149582,1748040119597,394.73,0.00042578,120]
[362149583,1748040131188,420.0,0.00042578,120]
[362149584,1748040131446,420.0,0.00042578,120]
[362149585,1748040131692,420.0,0.00042578,120]
[362149586,1748040132166,348.72,0.00042578,120]
[362149587,1748040135828,420.0,0.00042578,120]
[362149588,1748040136079,422.36,0.00042578,120]
[362149589,1748040141496,162.62412424,0.00042578,120]
[362149590,1748040142800,200.0,0.00042578,120]
[362149591,1748040143447,420.0,0.00042578,120]
[362149592,1748040144042,420.0,0.00042578,120]
[362149593,1748040144881,153.68,0.00042578,120]
[362149594,1748040146006,420.0,0.00042578,120]
[362149595,1748040146260,420.0,0.00042578,120]
[362149596,1748040146674,420.0,0.00042578,120]
[362149597,1748040146932,420.0,0.00042578,120]
[362149598,1748040158325,514.08,0.00042578,120]
[362149599,1748040170626,420.0,0.00042578,120]
[362149600,1748040170883,420.0,0.00042578,120]
[362149601,1748040172727,289.44,0.00042578,120]
[362149602,1748040176580,431.49920052,0.00042578,120]
[362149603,1748040177424,420.0,0.00042578,120]
[362149604,1748040177698,420.0,0.00042578,120]
[362149605,1748040179498,150.0,0.00042578,120]
[362149606,1748040181235,420.0,0.00042578,120]
[362149607,1748040181644,420.0,0.00042578,120]
[362149608,1748040186868,341.81211446,0.00042578,120]
[362149609,1748040190525,420.0,0.00042578,120]
[362149610,1748040190775,420.0,0.00042578,120]
[362149611,1748040196848,420.0,0.00042578,120]
[362149612,1748040197106,538.84,0.00042578,120]
[362149613,1748040208264,420.0,0.00042578,120]
[362149614,1748040208567,420.0,0.00042578,120]
[362149615,1748040219929,226.68,0.00042578,120]
[362149616,1748040231800,420.0,0.00042578,120]
[362149617,1748040232055,420.0,0.00042578,120]
[362149618,1748040241112,420.0,0.00042578,120]
[362149619,1748040241349,420.0,0.00042578,120]
[362149620,1748040241592,420.0,0.00042578,120]
[362149621,1748040241835,420.0,0.00042578,120]
[362149622,1748040250481,420.0,0.00042578,120]
[362149623,1748040250744,420.0,0.00042578,120]
[362149624,1748040260164,420.0,0.00042578,120]
[362149625,1748040260410,420.0,0.00042578,120]
[362149626,1748040274183,530.34,0.00042578,120]
[362149628,1748040293384,420.0,0.00042578,120]
[362149629,1748040293644,420.0,0.00042578,120]
[362149630,1748040301284,420.0,0.00042578,120]
[362149631,1748040301534,420.0,0.00042578,120]
[362149632,1748040306890,307.16,0.00042581,120]
[362149633,1748040317111,420.0,0.00042581,120]
[362149634,1748040317355,203.38,0.00042581,120]
[362149635,1748040339127,-180.0,0.00018695,2]
[362149636,1748040339149,-953.57047164,0.00018696,2]
[362149637,1748040343554,420.0,0.00042581,120]
[362149638,1748040343794,420.0,0.00042581,120]
[362149639,1748040367994,498.5,0.0002574,120]
[362149640,1748040437432,172.03,0.00014813,2]
[362149641,1748040444093,-960.09,0.00018497,2]
[362149642,1748040444115,-25.84956341,0.00018615,2]
[362149643,1748040476951,-187.14,0.00016712,2]
[362149644,1748040550088,-581.645847,0.00018392,2]
[362149645,1748040550114,-200.0,0.00018485,2]
[362149646,1748040550137,-1313.52,0.00018517,2]
[362149647,1748040550163,-2038.08,0.00018566,2]
[362149648,1748040550186,-124.15043659,0.00018615,2]
[362149649,1748040550210,-253.40436943,0.00018673,2]
[362149650,1748040554094,-246.59563057,0.00018673,2]
[362149651,1748040554115,-300.0,0.00018695,2]
[362149652,1748040554136,-3867.76316133,0.00018696,2]
[362149653,1748040577180,-5540.74007687,0.00018695,2]
[362149654,1748040577203,-43458.15636703,0.00018696,2]
[362149655,1748040577226,-498.5,0.0001872,2]
[362149656,1748040577249,-200.0,0.00018728,2]
[362149657,1748040577275,-151.0,0.00018731,2]
[362149658,1748040577297,-151.0,0.00018731,2]
[362149659,1748040577319,-150.0,0.00018759,7]
[362149660,1748040577341,-500.0,0.00018775,2]
[362149661,1748040577362,-150.0,0.00018788,2]
[362149662,1748040577383,-1200.0,0.00018789,2]
[362149663,1748040577404,-500.0,0.00018789,2]
[362149664,1748040577425,-500.0,0.00018789,2]
[362149665,1748040577446,-275.34263991,0.00018789,2]
[362149666,1748040577467,-23900.0,0.0001879,2]
[362149667,1748040577488,-500.0,0.000188,2]
[362149668,1748040577509,-500.0,0.000188,2]
[362149669,1748040577530,-250.0,0.00018802,2]
[362149670,1748040577551,-848.05,0.0001881,2]
[362149671,1748040577574,-1577.62,0.00019179,2]
[362149672,1748040577599,-237.52,0.0001919,2]
[362149673,1748040577620,-1000.0,0.00019348,2]
[362149674,1748040577642,-412.89850764,0.00019348,2]
[362149675,1748040577664,-300.0,0.000194,7]
[362149676,1748040577685,-152.98653759,0.00019481,2]
[362149677,1748040577707,-600.0,0.000195,7]
[362149678,1748040577730,-928.0,0.00019578,2]
[362149679,1748040577755,-329.64468528,0.000196,2]
[362149680,1748040577778,-900.0,0.000196,7]
[362149681,1748040577802,-16665.84,0.00019648,2]
[362149682,1748040577825,-1300.0,0.000197,7]
[362149683,1748040577846,-666.4,0.00019766,2]
[362149684,1748040577871,-4250.07232375,0.000198,2]
[362149685,1748040577894,-1600.0,0.000198,7]
[362149686,1748040577917,-165.64027874,0.000198,2]
[362149687,1748040577939,-11047.26250707,0.00019801,2]
[362149688,1748040577962,-270.0497777,0.0001981,2]
[362149689,1748040577985,-4250.07232368,0.00019811,2]
[362149690,1748040578009,-4250.07232368,0.00019822,2]
[362149691,1748040578030,-4250.07232368,0.00019833,2]
[362149692,1748040578052,-4250.07232368,0.00019844,2]
[362149693,1748040578074,-4250.07232368,0.00019856,2]
[362149694,1748040578096,-1652.885,0.00019863,2]
[362149695,1748040578118,-174.56,0.00019863,2]
[362149696,1748040578139,-16986.0,0.00019863,2]
[362149697,1748040578163,-4250.07232368,0.00019867,2]
[362149698,1748040578188,-4250.07232368,0.00019878,2]
[362149699,1748040578211,-4250.07232368,0.00019889,2]
[362149700,1748040578232,-1234.26282214,0.00019896,2]
[362149701,1748040578268,-198.92440351,0.00019899,2]
[362149702,1748040578296,-259.93578122,0.00019899,2]
[362149703,1748040578318,-189.57582103,0.00019899,2]
[362149704,1748040578341,-286.4976252,0.00019899,2]
[362149705,1748040578364,-388.87219918,0.000199,2]
[362149706,1748040578387,-193651.1840567,0.000199,2]
[362149707,1748040590799,420.0,0.00042581,120]
[362149708,1748040591643,420.0,0.00042581,120]
[362149709,1748040593551,420.0,0.00042581,120]
[362149710,1748040593800,420.0,0.00042581,120]
[362149711,1748040596202,420.0,0.00042581,120]
[362149712,1748040596446,420.0,0.00042581,120]
[362149713,1748040599119,562.48,0.00042581,120]
[362149714,1748040599324,420.0,0.00042581,120]
[362149715,1748040599573,420.0,0.00042581,120]
[362149716,1748040600997,420.0,0.00042581,120]
[362149717,1748040601307,420.0,0.00042581,120]
[362149718,1748040601562,166.23,0.00042581,120]
[362149719,1748040603501,420.0,0.00042581,120]
[362149720,1748040603566,420.0,0.00042581,120]
[362149721,1748040603718,420.0,0.00042581,120]
[362149722,1748040603828,420.0,0.00042581,120]
[362149723,1748040603899,420.0,0.00042581,120]
[362149724,1748040603998,420.0,0.00042581,120]
[362149725,1748040604078,420.0,0.00042581,120]
[362149726,1748040604166,420.0,0.00042581,120]
[362149727,1748040604323,420.0,0.00042581,120]
[362149728,1748040604411,338.42063901,0.00042581,120]
[362149729,1748040604480,420.0,0.00042581,120]
[362149730,1748040604566,420.0,0.00042581,120]
[362149731,1748040604679,420.0,0.00042581,120]
[362149732,1748040604812,420.0,0.00042581,120]
[362149733,1748040604929,420.0,0.00042581,120]
[362149734,1748040604999,499.04,0.00042581,120]
[362149735,1748040605063,420.0,0.00042581,120]
[362149736,1748040605657,420.0,0.00042581,120]
[362149737,1748040605913,329.66,0.00042581,120]
[362149738,1748040606440,455.75,0.00042581,118]
[362149739,1748040607026,420.0,0.00042581,120]
[362149740,1748040607281,420.0,0.00042581,120]
[362149741,1748040607343,420.0,0.00042581,120]
[362149742,1748040609697,420.0,0.00042581,120]
[362149743,1748040609945,420.0,0.00042581,120]
[362149744,1748040611807,437.12,0.00042581,120]
[362149745,1748040613679,420.0,0.00042581,120]
[362149746,1748040615186,420.0,0.00042581,60]
[362149747,1748040615837,420.0,0.00042581,120]
[362149748,1748040616397,253.73,0.00042581,120]
[362149749,1748040619242,420.0,0.00042581,120]
[362149750,1748040621253,420.0,0.00042581,120]
[362149751,1748040623342,420.0,0.00042581,120]
[362149752,1748040623502,420.0,0.00042581,120]
[362149753,1748040625146,420.0,0.00042581,120]
[362149754,1748040625382,420.0,0.00042581,120]
[362149756,1748040626450,420.0,0.00042581,120]
[362149757,1748040627356,420.0,0.00042581,120]
[362149758,1748040627417,420.0,0.00042581,120]
[362149759,1748040627586,420.0,0.00042581,120]
[362149760,1748040627648,536.17,0.00042581,120]
[362149761,1748040629603,420.0,0.00042581,120]
[362149762,1748040630034,354.21,0.00042581,120]
[362149763,1748040630191,500.0,0.00042581,120]
[362149766,1748040631953,420.0,0.00042581,120]
[362149768,1748040632018,-172.38703256,0.00019899,2]
[362149769,1748040632028,-1200.0,0.00019899,2]
[362149770,1748040632038,-300.0,0.00019899,2]
[362149771,1748040632047,-200.0,0.000199,2]
[362149772,1748040632056,-4937.07824882,0.000199,2]
[362149773,1748040632065,-157.69236961,0.000199,2]
[362149774,1748040632079,-300.0,0.000199,7]
[362149775,1748040632089,-4250.07232368,0.000199,2]
[362149776,1748040632098,-222.21156385,0.000199,3]
[362149777,1748040632108,-1166.76687431,0.000199,2]
[362149778,1748040632120,-556.26072989,0.000199,2]
[362149779,1748040632132,-383.12875825,0.000199,2]
[362149780,1748040632147,-415.87469936,0.000199,2]
[362149781,1748040632160,-11667.85044295,0.000199,2]
[362149782,1748040632170,-3029.65502062,0.000199,2]
[362149783,1748040632181,-334.32777578,0.000199,2]
[362149784,1748040632193,-216.6305344,0.000199,2]
[362149785,1748040632203,-465.93358792,0.00019948,2]
[362149786,1748040632213,-556.26501701,0.00019973,2]
[362149787,1748040632223,-500.0,0.00019973,2]
[362149788,1748040632233,-500.0,0.00019973,2]
[362149789,1748040632243,-500.0,0.00019973,2]
[362149790,1748040632253,-500.0,0.00019973,2]
[362149791,1748040632262,-320401.86444257,0.0001999,2]
[362149792,1748040632331,420.0,0.00042581,120]
[362149793,1748040632397,420.0,0.00042581,120]
[362149794,1748040632410,-929.25693706,0.0001999,2]
[362149795,1748040632422,-1231.85132041,0.0001999,2]
[362149796,1748040632433,-578.59140228,0.0001999,2]
[362149797,1748040632448,-158733.93602711,0.0001999,2]
[362149798,1748040632458,-150.82,0.0001999,2]
[362149799,1748040632467,-150.82,0.0001999,2]
[362149800,1748040632477,-150.82,0.0001999,2]
[362149801,1748040632486,-150.82,0.0001999,2]
[362149802,1748040632496,-150.82,0.0001999,2]
[362149803,1748040632505,-150.82,0.0001999,2]
[362149804,1748040632515,-150.82,0.0001999,2]
[362149805,1748040632524,-150.82,0.0001999,2]
[362149806,1748040632533,-150.82,0.0001999,2]
[362149807,1748040632542,-150.82,0.0001999,2]
[362149808,1748040632552,-150.82,0.0001999,2]
[362149809,1748040632561,-150.82,0.0001999,2]
[362149810,1748040632571,-150.82,0.0001999,2]
[362149811,1748040632580,-347.19182666,0.0001999,2]
[362149812,1748040632590,-347.19182666,0.0001999,2]
[362149813,1748040632600,-347.19182666,0.0001999,2]
[362149814,1748040632609,-308.31,0.00019999,2]
[362149815,1748040632619,-193764.78503186,0.0002,2]
[362149816,1748040632631,-86635.90188477,0.0002,2]
[362149817,1748040632642,-1825.97479114,0.0002,2]
[362149818,1748040632653,-4906.28337191,0.0002,2]
[362149819,1748040632704,-430.25086577,0.0002,2]
[362149820,1748040632718,-5631.21966337,0.0002,2]
[362149821,1748040634219,420.0,0.00042581,120]
[362149822,1748040634386,420.0,0.00042581,120]
[362149824,1748040637993,-1800.0,0.0002,2]
[362149825,1748040638005,-356.89468497,0.0002,2]
[362149826,1748040638039,-2159.0,0.0002,2]
[362149827,1748040638073,-31073.22962157,0.0002,2]
[362149828,1748040638191,-571834.90232549,0.0002,2]
[362149830,1748040638203,-436.52595144,0.0002,2]
[362149832,1748040638215,-2061.72207072,0.0002,2]
[362149834,1748040638227,-519.750011,0.0002,2]
[362149837,1748040638239,-1068.21900387,0.0002,2]
[362149839,1748040638251,-534.82997,0.0002,2]
[362149842,1748040638263,-8431.1612707,0.0002,2]
[362149845,1748040638276,-6793.6286732,0.0002,2]
[362149861,1748040638366,-1112.3650598,0.000199,2]
[362149864,1748040638375,-25424.39134425,0.0002,2]
[362149867,1748040638387,-24944.34423512,0.0002,2]
[362149904,1748040638708,420.0,0.00042581,120]
[362150004,1748040640309,-2200.0,0.0002,2]
[362150005,1748040640419,-8064.3617255,0.0002,2]
[362150006,1748040640431,-276.08178343,0.0002,2]
[362150007,1748040640442,-1299.70076864,0.0002,2]
[362150008,1748040640453,-16334.38412226,0.0002,2]
[362150009,1748040640534,-200.54833764,0.00019989,2]
[362150010,1748040640544,-181.95504685,0.00019989,2]
[362150019,1748040640757,-196249.8849163,0.0002,2]
[362150021,1748040640771,-27505.42579273,0.0002,2]
[362150022,1748040640783,-577.84548705,0.0002,2]
[362150024,1748040640794,-561.74801864,0.0002,2]
[362150026,1748040640810,-7286.96358381,0.0002,2]
[362150028,1748040640821,-11104.40000003,0.0002,2]
[362150031,1748040640831,-18577.6464,0.0002,2]
[362150041,1748040640921,-2737.91820988,0.0002,2]
[362150070,1748040641258,420.0,0.00042581,120]
[362150079,1748040643154,-18423.47796438,0.0002,2]
[362150080,1748040643177,-5972.32283216,0.0002,2]
[362150081,1748040643429,-557.084731,0.0002,2]
[362150082,1748040643499,420.0,0.00042581,120]
[362150319,1748040645943,420.0,0.00042581,120]
[362150337,1748040646164,-1319.66519182,0.0002,2]
[362150339,1748040646178,-1021.50399993,0.0002,2]
[362150376,1748040646635,-180.48678856,0.0002,2]
[362150379,1748040646662,-9197.72006952,0.0002,2]
[362150500,1748040648116,420.0,0.00042581,120]
[362150526,1748040648359,550.47,0.00042581,120]
[362150574,1748040648814,420.0,0.00042581,120]
[362150652,1748040649561,212.10033175,0.00042581,120]
[362150794,1748040651069,163.2689617,0.00042581,120]
[362150940,1748040653012,420.0,0.00042581,120]
[362150941,1748040655041,461.27,0.00042581,120]
[362150942,1748040658547,420.0,0.00042581,120]
[362150943,1748040658651,420.0,0.00042581,120]
[362150944,1748040660447,420.0,0.00042581,120]
[362150945,1748040663660,420.0,0.00042581,120]
[362150946,1748040669918,420.0,0.00042581,120]
[362150947,1748040669981,420.0,0.00042581,120]
[362150948,1748040670172,420.0,0.00042581,120]
[362150949,1748040674969,420.0,0.00042581,120]
[362150950,1748040682575,420.0,0.00042581,120]
[362150951,1748040686659,420.0,0.00042581,120]
[362150952,1748040686900,422.7,0.00042581,120]
[362150953,1748040690473,560.61,0.00042581,120]
[362150954,1748040690747,420.0,0.00042581,120]
[362150955,1748040691140,420.0,0.00042581,120]
[362150956,1748040692675,420.0,0.00042581,120]
[362150957,1748040694669,168.93495645,0.00042581,120]
[362150958,1748040694732,200.36,0.00042581,120]
[362150959,1748040694793,420.0,0.00042581,120]
[362150960,1748040695292,420.0,0.00042581,120]
[362150961,1748040699360,420.0,0.00042581,120]
[362150962,1748040699525,420.0,0.00042581,120]
[362150963,1748040699615,420.0,0.00042581,120]
[362150964,1748040701508,420.0,0.00042581,120]